{"text_format":"1","workbook":"xlsx","n_sheets":1,"sheets":["送付先別数量明細"],"not_rendered":{"charts":0,"images":0,"macros":1,"external_links":0,"defined_names":1,"comments":0,"pivot_tables":0},"unopened":[],"bounds":{"document_bytes":16777216,"sheet_cells":100000,"rows_first":2000,"rows_last":500,"rows_between":2000,"halvings":0,"cell_chars":16384,"cell_head_chars":4096},"cells_cut":0,"cells_raw":0,"read":"whole","date_system":"1900"}

{"sheet":"送付先別数量明細","index":0,"n_rows":18,"n_cols":49,"rows_kept":18,"cut":false,"hidden":false,"merged":[[0,7,0,48],[1,7,1,23],[1,24,1,32],[1,33,1,43],[4,7,4,48],[1,44,1,47],[6,7,6,48],[7,7,7,23],[7,24,7,32],[7,33,7,43],[2,2,2,5],[3,2,3,5],[4,2,4,5],[7,44,7,47]]}
["■ご発注者の情報",null,null,null,null,null,null,"ご注文合計数量"]
[null,null,null,null,null,null,null,"新中問標準",null,null,null,null,null,null,null,null,null,null,null,null,null,null,null,null,"新中問発展",null,null,null,null,null,null,null,null,"マイクリア",null,null,null,null,null,null,null,null,null,null,"English\nTravel"]
[null,"顧客コード",null,null,null,null,null,"英語\n中１","英語\n中２","英語\n中３","数学\n中１","数学\n中２","数学\n中３","国語\n中１","国語\n中２","国語\n中３","理科\n中１","理科\n中２","理科\n中３","地理Ⅰ","地理Ⅱ","歴史Ⅰ","歴史Ⅱ","公民","英語\n中１","英語\n中２","英語\n中３","数学\n中１","数学\n中２","数学\n中３","国語\n中１","国語\n中２","国語\n中３","英語\n中１","英語\n中２","英語\n中３","数学\n中１","数学\n中２","数学\n中３","国語\n中１","国語\n中２","国語\n中３","理科\n全","社会\n全","Book\n1","Book\n2","Book\n3","Book\n4","合計"]
[null,"貴校名",null,null,null,null,null,{"$f":"SUM(H10:H787)","v":0},0,0,0,0,0,0,0,0,0,0,0,0,0,0,0,0,0,0,0,0,0,0,0,0,0,0,0,0,0,0,0,0,0,0,0,0,0,0,0,0,0]
[null,"発注ご担当者名",null,null,null,null,null,"※「デジタル教師用シリーズ(2019年度版) 注文書」の数量と相違の無いことをご確認ください。"]
[]
["■送付先の明細",null,null,null,null,null,null,"送付先別数量明細"]
[null,null,null,null,null,null,null,"新中問標準",null,null,null,null,null,null,null,null,null,null,null,null,null,null,null,null,"新中問発展",null,null,null,null,null,null,null,null,"マイクリア",null,null,null,null,null,null,null,null,null,null,"English\nTravel"]
[null,"顧客コード","名称","ご担当者名","〒","住所","電話番号","英語\n中１","英語\n中２","英語\n中３","数学\n中１","数学\n中２","数学\n中３","国語\n中１","国語\n中２","国語\n中３","理科\n中１","理科\n中２","理科\n中３","地理Ⅰ","地理Ⅱ","歴史Ⅰ","歴史Ⅱ","公民","英語\n中１","英語\n中２","英語\n中３","数学\n中１","数学\n中２","数学\n中３","国語\n中１","国語\n中２","国語\n中３","英語\n中１","英語\n中２","英語\n中３","数学\n中１","数学\n中２","数学\n中３","国語\n中１","国語\n中２","国語\n中３","理科\n全","社会\n全","Book\n1","Book\n2","Book\n3","Book\n4","計"]
[1,null,null,null,null,null,null,null,null,null,null,null,null,null,null,null,null,null,null,null,null,null,null,null,null,null,null,null,null,null,null,null,null,null,null,null,null,null,null,null,null,null,null,null,null,null,null,null,{"$f":"SUM(H10:AT10)","v":0}]
[2,null,null,null,null,null,null,null,null,null,null,null,null,null,null,null,null,null,null,null,null,null,null,null,null,null,null,null,null,null,null,null,null,null,null,null,null,null,null,null,null,null,null,null,null,null,null,null,0]
[3,null,null,null,null,null,null,null,null,null,null,null,null,null,null,null,null,null,null,null,null,null,null,null,null,null,null,null,null,null,null,null,null,null,null,null,null,null,null,null,null,null,null,null,null,null,null,null,0]
[4,null,null,null,null,null,null,null,null,null,null,null,null,null,null,null,null,null,null,null,null,null,null,null,null,null,null,null,null,null,null,null,null,null,null,null,null,null,null,null,null,null,null,null,null,null,null,null,0]
[5,null,null,null,null,null,null,null,null,null,null,null,null,null,null,null,null,null,null,null,null,null,null,null,null,null,null,null,null,null,null,null,null,null,null,null,null,null,null,null,null,null,null,null,null,null,null,null,0]
[6,null,null,null,null,null,null,null,null,null,null,null,null,null,null,null,null,null,null,null,null,null,null,null,null,null,null,null,null,null,null,null,null,null,null,null,null,null,null,null,null,null,null,null,null,null,null,null,{"$f":"SUM(H15:AT15)","v":0}]
[7,null,null,null,null,null,null,null,null,null,null,null,null,null,null,null,null,null,null,null,null,null,null,null,null,null,null,null,null,null,null,null,null,null,null,null,null,null,null,null,null,null,null,null,null,null,null,null,{"$f":"SUM(H16:AT16)","v":0}]
[8,null,null,null,null,null,null,null,null,null,null,null,null,null,null,null,null,null,null,null,null,null,null,null,null,null,null,null,null,null,null,null,null,null,null,null,null,null,null,null,null,null,null,null,null,null,null,null,{"$f":"SUM(H17:AT17)","v":0}]
[9,null,null,null,null,null,null,null,null,null,null,null,null,null,null,null,null,null,null,null,null,null,null,null,null,null,null,null,null,null,null,null,null,null,null,null,null,null,null,null,null,null,null,null,null,null,null,null,{"$f":"SUM(H18:AT18)","v":0}]